bitfinex-derivatives/quotes_ETHF0:USTF0_20240829
["timestamp","ask_amount","ask_price","bid_price","bid_amount"]
[1724890986333,0.13039677,2534.6,2534.2,41.1945]
[1724890986533,0.13039677,2534.6,2534.2,40.8]
[1724890986534,0.39444,2534.6,2534.2,40.8]
[1724890986726,0.13039872,2534.5,2534.2,40.8]
[1724890986937,3.96053,2534.7,2534.2,41.19449]
[1724890987236,0.43490708,2534.6,2534.2,41.19449]
[1724890987531,0.13039677,2534.5,2534.2,40.8]
[1724890987940,0.13039677,2534.5,2534.2,41.1945]
[1724890988141,3.96053,2534.7,2534.2,41.1945]
[1724890988336,0.39444,2534.6,2534.1,1.15511]
[1724890988541,0.52485858,2534.5,2534.1,0.7606]
[1724890988729,0.13040858,2534.4,2534.1,41.95511]
[1724890989037,0.39444,2534.6,2534.1,41.95511]
[1724890989235,0.13040107,2534.5,2534.1,41.5606]
[1724890989430,3.5661,2534.7,2534.1,41.5606]
[1724890989431,0.39449,2534.3,2534.1,41.5606]
[1724890989641,0.13044194,2534.2,2533.9,0.39454]
[1724890989941,3.60228,2534.4,2533.9,0.39454]
[1724890990243,0.43501645,2534.3,2534.0,40.8]
[1724890990437,0.43501645,2534.2,2533.8,3.60236]
[1724890990633,0.43501645,2534.2,2534.0,0.39452]
[1724890991236,0.43501645,2534.2,2534.1,0.39451]
[1724890991833,0.43501774,2534.2,2534.0,0.39452]
[1724890992240,3.8246718,2534.4,2534.1,0.39451]
[1724890992542,0.68174525,2534.3,2534.1,0.39451]
[1724890992738,0.68174525,2534.3,2534.2,0.3945]
[1724890992930,0.43499485,2534.3,2534.2,0.3945]
[1724890993131,0.68172786,2534.3,2534.1,0.3945]
[1724890993437,0.68172786,2534.3,2533.6,0.00591529]
[1724890993638,0.39452,2534.1,2533.7,0.39457]
[1724890993835,0.43499485,2534.0,2533.9,0.39454]
[1724890994239,0.68175227,2534.2,2533.9,0.39454]
[1724890994436,0.68175141,2534.1,2533.9,41.19454]
[1724890994642,4.2191418,2534.4,2533.9,41.19454]
[1724890994839,1.29859764,2534.3,2533.9,41.19454]
[1724890995235,0.55133075,2534.2,2533.9,41.19454]
[1724890995434,0.13043887,2534.1,2534.0,0.39453]
[1724890995638,0.43501706,2534.1,2534.0,0.39453]
[1724890996033,0.13043887,2534.1,2534.0,5.06793]
[1724890996240,0.6168814,2534.5,2534.0,5.0255]
[1724890996434,0.68167408,2534.4,2534.1,0.3945]
[1724890996644,1.29855548,2534.4,2534.1,0.3945]
[1724890996843,0.68167408,2534.3,2534.1,0.3945]
[1724890997051,0.43494105,2534.2,2534.0,1.12152]
[1724890997235,1.0113514,2534.4,2534.0,1.12152]
[1724890997236,0.43494105,2534.1,2534.0,1.12152]
[1724890997437,0.24674359,2534.3,2534.1,0.39451]
[1724890997634,0.6168814,2534.4,2534.2,0.3945]
[1724890997845,0.68170798,2534.3,2534.1,0.39451]
[1724890998035,0.43496802,2534.2,2534.1,0.39451]
[1724890998235,0.6168814,2534.4,2534.2,0.3945]
[1724890998437,0.68171039,2534.3,2534.2,0.3945]
[1724890998635,0.00591529,2534.8,2534.7,0.39442]
[1724890998842,0.44063281,2534.8,2534.7,4.33922]
[1724890999040,0.13623898,2534.8,2534.7,5.05552]
[1724890999346,8.22086356,2535.5,2534.7,56.99716]
[1724890999347,0.3778,2535.5,2534.7,56.99716]
[1724890999646,8.21706356,2535.8,2535.3,0.39432]
[1724890999647,0.30421831,2535.4,2535.3,0.39432]
[1724890999848,0.30421831,2535.4,2535.2,0.39433]
[1724891000152,3.5818,2535.8,2534.9,4.191]
[1724891000153,0.3042213,2535.3,2534.9,4.191]
[1724891000450,1.0725713,2535.2,2534.9,4.191]
[1724891000639,0.3042213,2535.1,2534.9,4.191]
[1724891001041,0.3773,2535.0,2534.9,4.191]
[1724891001242,0.6815213,2535.0,2534.9,4.191]
[1724891001556,0.3042213,2535.0,2534.9,4.191]
[1724891001740,3.9448,2535.0,2534.9,4.191]
[1724891001941,0.39439,2534.9,2534.8,0.00591529]
[1724891002141,4.6434113,2534.9,2534.8,0.00591529]
[1724891002342,13.8512113,2534.9,2534.8,0.00591529]
[1724891002545,13.54699,2534.9,2534.8,0.00591529]
[1724891002747,13.85139134,2534.9,2534.8,0.00591529]
[1724891003050,13.87872144,2534.9,2534.8,0.00591529]
[1724891003647,13.87872144,2534.9,2534.3,4.191]
[1724891003648,13.48433144,2534.9,2534.3,4.191]
[1724891003849,13.48433144,2534.9,2534.0,0.39452]
[1724891003850,3.2078,2534.6,2534.0,0.39452]
[1724891004052,1.03540134,2534.5,2534.1,40.8]
[1724891004356,0.3044657,2534.4,2534.1,40.8]
[1724891004651,3.2078,2534.6,2534.1,40.8]
[1724891004852,0.378,2534.9,2534.1,41.1875]
[1724891005050,0.30439499,2534.8,2534.1,41.1875]
[1724891005252,0.30439499,2534.7,2534.2,0.39449]
[1724891005447,3.2078,2534.7,2534.2,0.39449]
[1724891005645,3.2078,2534.7,2534.1,40.8]
[1724891005646,0.30444688,2534.6,2534.3,0.39447]
[1724891005950,3.2078,2534.7,2534.4,0.39446]
[1724891006151,0.30440113,2534.6,2534.4,0.39446]
[1724891006351,3.2078,2534.7,2534.4,0.39446]
[1724891006548,0.30441832,2534.6,2534.3,0.39447]
[1724891006747,3.2078,2534.7,2534.3,0.39447]
[1724891006955,0.30443452,2534.6,2534.3,0.39447]
[1724891007145,3.2078,2534.7,2534.1,40.8]
[1724891007342,0.30443293,2534.6,2534.4,0.39446]
[1724891007551,3.2078,2534.7,2534.4,0.39446]
[1724891007854,0.30441084,2534.6,2534.4,0.39446]
[1724891008056,3.2078,2534.7,2534.4,0.39446]
[1724891008245,3.2078,2534.7,2534.5,0.39445]
[1724891008446,0.30441484,2534.6,2534.5,0.39445]
[1724891008646,3.2078,2534.7,2534.5,0.39445]
[1724891009052,3.2078,2534.7,2534.4,0.39445]
[1724891009252,3.2078,2534.7,2534.1,40.8]
[1724891009253,0.30441342,2534.6,2534.1,40.8]
[1724891009450,0.30444479,2534.5,2534.2,0.39449]
[1724891009651,0.39444,2534.6,2534.1,41.1945]
[1724891009848,0.30445734,2534.5,2534.2,0.39449]
[1724891010148,3.60223,2534.7,2534.2,0.39449]
[1724891010348,0.30446943,2534.6,2534.2,0.39449]
[1724891010655,0.30446943,2534.5,2534.2,0.39449]
[1724891010851,0.39444,2534.6,2534.2,0.39449]
[1724891011050,3.2078,2534.7,2534.4,0.39447]
[1724891011257,0.30442419,2534.6,2534.4,0.39447]
[1724891011558,0.43474752,2534.6,2534.5,0.3884]
[1724891012347,0.39445,2534.5,2534.1,40.8]
[1724891012552,3.60229,2534.3,2534.1,40.8]
[1724891012760,0.43487587,2534.2,2534.1,40.8]
[1724891013555,0.43487587,2534.2,2534.0,0.01031529]
[1724891013760,0.82938587,2534.2,2534.0,0.01031529]
[1724891013954,0.43487587,2534.1,2534.0,0.01031529]
[1724891014161,0.43487587,2534.1,2534.0,40.81031529]
[1724891014562,0.43487587,2534.1,2534.0,0.01031529]
[1724891015060,0.1303512,2534.1,2534.0,45.15124529]
[1724891015258,3.2078,2534.3,2534.0,44.75671529]
[1724891015459,3.2078,2534.3,2534.1,0.39451]
[1724891015865,0.13036814,2534.2,2534.0,40.81031529]
[1724891016069,0.43486905,2534.2,2534.0,40.81031529]
[1724891016561,2.04689772,2534.2,2534.0,0.01031529]
[1724891016765,0.68163359,2534.1,2534.0,0.01031529]
[1724891016958,1.07614359,2534.1,2534.0,0.01031529]
[1724891017157,5.63939772,2534.1,2534.0,0.01031529]
[1724891017366,10.65538847,2534.1,2533.3,7.3988]
[1724891017575,3.8248138,2533.7,2533.3,3.2078]
[1724891017778,0.39455,2533.9,2533.4,40.8]
[1724891017779,0.43486905,2533.6,2533.4,40.8]
[1724891018072,3.2078,2534.0,2533.4,41.19461]
[1724891018073,0.43507741,2533.5,2533.4,41.19461]
[1724891018461,0.1304534,2533.5,2533.4,41.19461]
[1724891018856,0.00591529,2533.7,2533.4,41.19461]
[1724891019061,0.13045029,2533.5,2533.4,41.19461]
[1724891019362,0.00591529,2533.7,2533.5,0.39461]
[1724891019572,0.43506304,2533.6,2533.5,0.39461]
[1724891020463,0.13044523,2533.6,2533.5,0.39461]
[1724891020659,0.00591529,2533.7,2533.5,0.39461]
[1724891020864,0.43506999,2533.6,2533.4,41.19461]
[1724891021667,0.13044523,2533.5,2533.4,41.19461]
[1724891021867,0.13044523,2533.5,2533.4,40.8]
[1724891022159,4.38231427,2533.5,2533.4,40.8]
[1724891022364,0.43511427,2533.5,2533.4,40.8]
[1724891022568,0.43511427,2533.5,2533.4,41.19462]
[1724891022772,0.43507171,2533.6,2533.5,0.39461]
[1724891023069,0.13045509,2533.6,2533.5,0.39461]
[1724891023264,0.13045509,2533.6,2533.5,1.13941]
[1724891023662,0.43508701,2533.6,2533.5,1.13941]
[1724891024057,0.43508717,2533.6,2533.5,1.13941]
[1724891024266,0.13045745,2533.6,2533.5,1.13941]
[1724891024965,0.13045745,2533.6,2533.5,5.08661]
[1724891025166,0.13045745,2533.6,2533.5,1.13941]
[1724891025866,0.13045745,2533.6,2533.5,0.7448]
[1724891026469,0.13045745,2533.6,2533.5,1.13941]
[1724891026858,3.21371529,2533.7,2533.5,1.13941]
[1724891026859,0.00591529,2533.7,2533.6,1.38108]
[1724891027084,0.00591529,2533.7,2533.6,13.08608]
[1724891027270,0.61700326,2534.5,2534.2,0.3945]
[1724891027271,0.39446,2534.5,2534.2,0.3945]
[1724891027476,0.30445453,2534.4,2534.2,0.3945]
[1724891027667,0.39446,2534.5,2534.2,0.3945]
[1724891027867,0.30443929,2534.4,2534.3,4.34008]
[1724891028168,3.2078,2535.0,2534.9,0.39439]
[1724891028368,5.01086356,2535.5,2534.9,0.39439]
[1724891028369,9.21633682,2535.7,2534.9,50.21]
[1724891028568,9.21633682,2535.7,2535.1,3.80436]
[1724891028569,0.00591529,2535.2,2535.1,3.80436]
[1724891028980,0.00591529,2535.2,2535.1,7.74916]
[1724891029273,0.00591529,2535.2,2535.1,4.33916]
[1724891031865,0.00591529,2535.2,2535.1,3.9448]
[1724891032078,0.00591529,2535.2,2534.7,0.00591529]
[1724891032079,0.39437,2535.1,2534.7,0.00591529]
[1724891032377,0.40025529,2535.2,2534.7,0.00591529]
[1724891032676,3.2078,2535.1,2534.7,0.00591529]
[1724891032975,3.2078,2534.8,2534.7,0.00591529]
[1724891033170,7.85138946,2534.8,2534.7,0.00591529]
[1724891033474,7.45698946,2534.8,2534.7,0.00591529]
[1724891034069,7.85138946,2534.8,2534.7,0.00591529]
[1724891035273,7.45698946,2534.8,2534.7,0.00591529]
[1724891035464,7.85138946,2534.8,2534.7,0.00591529]
[1724891035775,7.45698946,2534.8,2534.7,0.00591529]
[1724891035975,7.45700939,2534.8,2534.7,0.00591529]
[1724891036575,7.85140939,2534.8,2534.7,0.00591529]
[1724891036776,13.70373064,2534.8,2533.9,4.58553]
[1724891037074,0.90253064,2534.7,2534.3,0.39447]
[1724891037268,0.30440939,2534.6,2534.3,0.39447]
[1724891037871,0.3514,2534.7,2534.5,0.39444]
[1724891038580,3.2078,2534.8,2534.6,0.39444]
[1724891038778,3.2078,2534.8,2534.5,0.39444]
[1724891038983,0.13030116,2534.7,2534.4,0.39446]
[1724891039171,0.13030116,2534.6,2534.4,0.39446]
[1724891039482,0.13031955,2534.6,2534.5,0.39445]
[1724891039773,3.2078,2534.8,2534.7,0.39442]
[1724891040082,3.64247119,2534.8,2534.5,0.39444]
[1724891040284,0.43467119,2534.7,2534.5,0.39444]
[1724891040581,0.13029704,2534.7,2534.5,0.39444]
[1724891041171,3.9456,2534.6,2534.2,0.00591529]
[1724891041377,1.00324409,2535.0,2534.2,0.00591529]
[1724891041378,4.10725704,2534.5,2534.2,0.00591529]
[1724891041682,3.97696,2534.5,2534.2,0.00591529]
[1724891041874,0.13036966,2534.4,2534.2,0.00591529]
[1724891042073,0.39448,2534.3,2534.2,0.00591529]
[1724891042266,0.76108,2534.3,2534.2,0.00591529]
[1724891042467,4.74709996,2534.3,2534.2,0.00591529]
[1724891042883,5.14157996,2534.3,2534.2,0.00591529]
[1724891043478,0.39453,2534.0,2533.6,4.5592]
[1724891043684,0.39453,2534.0,2533.7,40.8]
[1724891044185,3.2078,2534.1,2533.2,0.75225]
[1724891044186,3.2078,2533.8,2533.2,0.75225]
[1724891044379,0.13042662,2533.7,2533.2,0.39465]
[1724891044682,0.44099569,2533.7,2533.3,40.8]
[1724891044987,0.13042662,2533.6,2533.3,40.8]
[1724891045177,0.13042662,2533.5,2533.3,40.8]
[1724891045377,0.13049016,2533.4,2533.3,40.8]
[1724891045585,0.13048861,2533.4,2533.3,40.8]
[1724891045878,0.13048861,2533.4,2533.3,41.19464]
[1724891046385,0.13049033,2533.4,2533.2,0.40055529]
[1724891046683,3.2078,2533.5,2533.2,41.20055529]
[1724891046881,0.13048843,2533.4,2533.3,0.39463]
[1724891047180,3.2078,2533.5,2533.3,0.39463]
[1724891047580,3.2078,2533.5,2533.4,0.39462]
[1724891048778,0.00591529,2533.7,2533.6,0.39459]
[1724891048981,0.00591529,2533.7,2533.6,4.34179]
[1724891051277,0.61683876,2534.7,2534.6,0.39444]
[1724891051480,3.2078,2535.3,2535.1,0.39435]
[1724891051791,3.2078,2535.3,2535.2,0.39434]
[1724891052284,3.2078,2535.3,2535.2,41.19434]
[1724891052982,3.2078,2535.3,2535.2,40.8]
[1724891053286,3.33800859,2535.3,2535.2,40.8]
[1724891053881,3.33800859,2535.3,2535.0,0.40028529]
[1724891054085,3.2078,2535.3,2535.0,0.40028529]
[1724891054481,3.2078,2535.3,2535.1,40.8]
[1724891054881,3.2078,2535.3,2535.1,41.19435]
[1724891055082,3.2078,2535.3,2535.2,0.39434]
[1724891055283,3.2078,2535.3,2535.1,41.19435]
[1724891055585,3.2078,2535.3,2535.1,40.8]
[1724891056094,3.60213,2535.3,2535.1,40.8]
[1724891056390,3.2078,2535.3,2535.1,40.8]
[1724891056783,3.60213,2535.3,2535.1,40.8]
[1724891056981,3.60213,2535.3,2535.0,0.00591529]
[1724891057383,3.2078,2535.3,2535.0,0.00591529]
[1724891057779,3.2078,2535.3,2535.1,0.39435]
[1724891058485,3.2078,2535.3,2535.2,0.39434]
[1724891062498,0.00591529,2535.5,2535.4,0.39431]
[1724891062693,0.00591529,2535.5,2535.4,4.33831]
[1724891064185,0.00591529,2535.5,2535.4,10.33831]
[1724891064390,0.00591529,2535.5,2535.4,4.33831]
[1724891069097,0.00591529,2535.5,2535.3,0.39433]
[1724891069401,0.00591529,2535.5,2535.2,0.39434]
[1724891069995,0.38971529,2535.5,2535.2,0.39434]
[1724891070493,0.38971529,2535.5,2535.3,0.39432]
[1724891073004,0.38971529,2535.5,2535.2,3.41]
[1724891073210,0.38971529,2535.5,2535.4,0.39431]
[1724891073412,0.38971529,2535.5,2535.3,0.39432]
[1724891074008,0.38971529,2535.5,2535.4,0.39431]
[1724891074596,0.38971529,2535.5,2535.3,0.39432]
[1724891074800,0.38971529,2535.5,2535.4,0.39431]
[1724891075906,0.38971529,2535.5,2535.3,0.39432]
[1724891076309,0.38971529,2535.5,2535.2,3.41]
[1724891076310,0.38971529,2535.5,2535.4,0.39431]
[1724891076708,0.38971529,2535.5,2535.3,0.39432]
[1724891077011,0.39436,2535.1,2535.0,0.00591529]
[1724891077316,6.74806816,2535.1,2534.4,4.191]
[1724891077510,0.76718,2535.0,2534.5,40.8]
[1724891077812,0.3868,2534.9,2534.5,40.8]
[1724891078198,3.2078,2534.8,2534.4,0.40037529]
[1724891078401,3.2078,2534.8,2534.4,0.00591529]
[1724891078604,3.2078,2534.5,2534.4,0.00591529]
[1724891078811,7.1534,2534.5,2534.4,0.00591529]
[1724891079200,3.2078,2534.5,2534.4,0.00591529]
[1724891079404,3.2078,2534.5,2534.4,0.40038529]
[1724891079710,3.2078,2534.5,2534.4,0.00591529]
[1724891080113,7.1534,2534.5,2534.4,0.00591529]
[1724891080416,3.2078,2534.5,2534.4,0.00591529]
[1724891081007,7.1534,2534.5,2534.4,0.00591529]
[1724891081310,3.2078,2534.5,2534.4,0.00591529]
[1724891082014,7.1534,2534.5,2534.4,0.00591529]
[1724891083012,0.39453,2534.0,2533.7,4.191]
[1724891083211,0.7309,2533.9,2533.3,4.55]
[1724891083402,0.7309,2533.9,2533.6,0.39458]
[1724891086018,0.7309,2533.9,2533.5,0.40051529]
[1724891086312,0.7309,2533.9,2533.5,0.00591529]
[1724891086817,1.0912,2533.9,2533.5,0.00591529]
[1724891087614,0.39456,2533.8,2533.5,0.00591529]
[1724891088115,1.48575,2533.9,2533.5,0.00591529]
[1724891088509,1.48575,2533.9,2533.5,0.40052529]
[1724891088905,1.48575,2533.9,2533.5,0.00591529]
[1724891089109,0.00591529,2534.0,2533.9,0.98637]
[1724891089419,0.00591529,2534.0,2533.9,0.78214]
[1724891089619,0.00591529,2534.0,2533.9,45.52854]
[1724891091315,0.00591529,2534.0,2533.9,41.58214]
[1724891091522,0.00591529,2534.0,2533.9,45.52854]
[1724891098627,0.00591529,2534.0,2533.9,41.1876]
[1724891098832,0.00591529,2534.0,2533.9,41.58214]
[1724891099119,3.21371529,2534.0,2533.9,40.8]
[1724891099326,0.39459,2533.6,2533.5,0.00591529]
[1724891099520,0.98637,2533.9,2533.5,0.00591529]
[1724891099521,3.2078,2533.7,2533.5,0.00591529]
[1724891099723,0.77659,2533.6,2533.5,0.00591529]
[1724891100032,0.382,2533.6,2533.5,0.00591529]
[1724891100214,4.3292,2533.6,2533.5,0.00591529]
[1724891100822,4.72379,2533.6,2533.5,0.01031529]
[1724891102825,10.72379,2533.6,2533.5,0.01031529]
[1724891103129,0.39468,2533.1,2532.8,3.2078]
[1724891103333,11.47344189,2533.6,2532.8,3.2078]
[1724891103334,0.39466,2533.2,2532.8,3.2078]
[1724891103522,3.60245,2533.3,2532.8,3.2078]
[1724891103726,3.60245,2533.3,2532.8,3.60252]
[1724891104025,0.39466,2533.2,2532.8,3.2078]
[1724891104414,3.60245,2533.3,2532.8,3.60252]
[1724891104618,0.39465,2533.2,2532.8,3.2078]
[1724891105024,3.2078,2533.3,2533.0,0.39467]
[1724891105323,3.2078,2533.3,2533.1,0.39467]
[1724891105935,3.2078,2533.3,2533.0,41.5179]
[1724891108026,0.39462,2533.4,2533.0,41.5179]
[1724891108329,0.39464,2533.3,2533.0,40.8]
[1724891108529,0.39464,2533.3,2532.7,3.2078]
[1724891108530,0.39468,2533.1,2532.7,3.2078]
[1724891108719,0.76319,2533.0,2532.7,3.2078]
[1724891109119,3.2078,2532.9,2532.7,40.8]
[1724891109726,3.948,2532.8,2532.1,8.741]
[1724891110029,9.2078,2532.9,2532.1,4.191]
[1724891110030,0.39477,2532.5,2532.1,4.191]
[1724891110332,0.00591529,2532.7,2532.2,0.3948]
[1724891110333,0.76175529,2532.7,2532.2,0.3948]
[1724891110528,0.76175529,2532.7,2532.1,4.191]
[1724891110529,0.39475,2532.6,2532.1,4.58582]
[1724891111432,0.36701529,2532.7,2532.5,0.39475]
[1724891111433,0.00591529,2532.7,2532.5,0.39475]
[1724891111820,0.00591529,2532.7,2532.2,0.3581]
[1724891111821,0.00591529,2532.7,2532.4,0.39477]
[1724891113826,0.40064529,2532.7,2532.2,0.3581]
[1724891114033,0.39477,2532.5,2532.1,8.741]
[1724891114241,0.39477,2532.5,2532.1,4.58582]
[1724891114532,0.387,2532.4,2532.1,4.58582]
[1724891115635,0.387,2532.4,2532.2,0.39481]
[1724891115837,0.387,2532.4,2532.1,4.58582]
[1724891116535,0.387,2532.4,2532.2,0.39481]
[1724891116731,0.00591529,2532.7,2532.1,11.9488]
[1724891116931,0.00591529,2532.7,2532.6,0.39475]
[1724891117335,3.95471529,2532.7,2532.1,11.9488]
[1724891117539,0.00591529,2532.7,2532.4,0.39477]
[1724891117729,0.00591529,2532.7,2532.1,11.9488]
[1724891117926,0.00591529,2532.7,2532.4,0.39477]
[1724891118829,0.00591529,2532.7,2532.4,0.39476]
[1724891119625,0.00591529,2532.7,2532.5,0.39476]
[1724891120037,0.00591529,2532.7,2532.4,0.39477]
[1724891121237,0.00591529,2532.7,2532.5,0.39476]
[1724891121435,0.00591529,2532.7,2532.1,11.9488]
[1724891121639,0.00591529,2532.7,2532.5,0.39475]
[1724891121838,0.00591529,2532.7,2532.4,0.39477]
[1724891122039,0.00591529,2532.7,2532.3,0.39478]
[1724891122241,3.56801529,2532.7,2531.9,0.3797]
[1724891122430,3.2078,2532.4,2531.7,4.191]
[1724891122630,0.39483,2532.1,2531.7,4.191]
[1724891122838,0.39483,2532.1,2531.6,0.3949]
[1724891123436,0.39483,2532.1,2531.5,4.1263]
[1724891123437,0.39483,2532.1,2531.5,4.52121]
[1724891123641,0.3543,2532.0,2531.6,0.3949]
[1724891124033,0.3543,2532.0,2531.5,4.1263]
[1724891124238,0.3543,2532.0,2531.7,0.39489]
[1724891124450,0.3543,2532.0,2531.5,4.1263]
[1724891124742,3.2078,2532.4,2531.5,4.1263]
[1724891124937,3.2078,2532.4,2531.7,3.41]
[1724891125140,3.60259,2532.4,2531.7,3.41]
[1724891125651,3.2078,2532.4,2531.7,3.41]
[1724891125841,3.2078,2532.4,2532.0,0.39484]
[1724891126041,3.60258,2532.4,2531.9,0.39485]
[1724891127452,3.2078,2532.4,2531.9,3.41]
[1724891127741,0.77365,2532.6,2532.1,0.39482]
[1724891127948,0.77365,2532.6,2532.2,0.3555]
[1724891128146,0.3789,2532.6,2532.2,0.3555]
[1724891128346,0.3789,2532.6,2532.3,0.39479]
[1724891128549,0.3789,2532.6,2532.3,41.19479]
[1724891128848,4.3277,2532.6,2532.3,40.8]
[1724891129046,0.77365,2532.6,2532.3,40.8]
[1724891129538,0.39481,2532.3,2531.8,0.39487]
[1724891129738,0.39481,2532.3,2531.7,10.8088]
[1724891129739,0.39484,2532.1,2531.7,7.3988]
[1724891129946,0.39484,2532.1,2531.7,40.8]
[1724891130140,0.39484,2532.0,2531.7,40.8]
[1724891130550,0.77663,2532.1,2531.7,40.8]
[1724891130749,0.77663,2532.1,2531.6,1.1064]
[1724891130750,0.39485,2532.0,2531.6,0.7115]
[1724891130950,0.39486,2531.9,2531.6,0.7115]
[1724891131152,0.39486,2531.9,2531.6,41.5115]
[1724891131847,0.39485,2532.0,2531.6,41.9064]
[1724891132447,0.39485,2532.0,2531.6,41.5115]
[1724891132643,0.39486,2531.9,2531.6,41.5115]
[1724891132849,0.39486,2531.9,2531.6,41.156]
[1724891133152,0.39489,2531.7,2531.6,41.156]
[1724891133351,1.36889,2532.1,2531.4,0.3616]
[1724891133352,0.39492,2531.6,2531.4,0.3616]
[1724891134150,0.39492,2531.5,2531.3,44.991]
[1724891134351,0.39492,2531.5,2531.1,0.76998]
[1724891134551,3.41,2531.7,2531.1,0.375]
[1724891134755,0.39492,2531.5,2531.1,0.375]
[1724891134958,0.7212,2531.6,2531.2,40.8]
[1724891135259,0.39488,2531.8,2531.3,0.39494]
[1724891135462,3.2078,2531.9,2531.7,0.39488]
[1724891135760,3.2078,2531.9,2531.6,0.39489]
[1724891136463,3.2078,2531.9,2531.6,0.77169]
[1724891136856,3.2078,2531.9,2531.7,0.39488]
[1724891137560,3.2078,2531.9,2531.6,0.3768]
[1724891137561,7.1574,2531.9,2531.6,0.3768]
[1724891137765,0.3949,2531.6,2531.2,40.8]
[1724891137958,0.3949,2531.7,2531.2,41.19496]
[1724891138256,0.3949,2531.7,2531.2,40.8]
[1724891138257,0.3631,2531.7,2531.2,40.8]
[1724891138459,0.39493,2531.5,2531.2,40.8]
[1724891138961,4.34534,2531.4,2531.1,4.191]
[1724891139170,3.41,2531.5,2530.9,0.7578]
[1724891139360,0.39499,2531.1,2530.7,4.191]
[1724891139669,0.39498,2531.2,2530.4,0.773]
[1724891139871,0.39499,2531.1,2530.4,0.773]
[1724891140052,0.39499,2531.1,2530.6,0.39506]
[1724891140053,0.77619,2531.1,2530.6,0.39506]
[1724891140966,4.55,2530.9,2529.8,3.2078]
[1724891141265,4.55,2530.9,2529.5,0.98809]
[1724891141266,3.2078,2530.1,2529.5,0.39522]
[1724891141568,7.7578,2529.8,2529.1,3.2078]
[1724891141752,7.7578,2529.8,2528.7,40.8]
[1724891141753,7.7578,2529.8,2528.8,3.9603]
[1724891141958,8.153,2529.8,2529.0,0.3953]
[1724891142361,8.153,2529.8,2528.8,3.9603]
[1724891142362,7.7578,2529.8,2528.8,3.9603]
[1724891142555,3.2078,2528.9,2528.1,0.39544]
[1724891142756,3.2078,2528.9,2527.9,0.3817]
[1724891142961,0.40127721,2528.8,2528.0,40.8]
[1724891143152,4.55,2528.6,2528.0,40.8]
[1724891143355,0.40127721,2528.8,2528.0,40.8]
[1724891143356,0.00592721,2528.8,2528.0,40.8]
[1724891143566,0.00592721,2528.8,2528.1,3.60325]
[1724891143963,0.00592721,2528.8,2528.1,3.2078]
[1724891144155,0.00592721,2528.8,2528.4,0.3954]
[1724891144357,0.00592721,2528.8,2528.4,3.2078]
[1724891144570,0.00592721,2528.8,2528.3,0.39542]
[1724891144864,0.00592721,2528.8,2528.7,3.60316]
[1724891145061,0.00592721,2528.8,2528.7,7.1622]
[1724891145266,0.00592721,2528.8,2528.6,0.3817]
[1724891145465,0.00592721,2528.8,2528.3,3.60321]
[1724891145759,0.00592721,2528.8,2528.5,0.39538]
[1724891146067,0.00592721,2528.8,2528.3,3.2078]
[1724891146564,0.00592721,2528.8,2528.5,0.39538]
[1724891147766,0.00592721,2528.8,2528.7,0.39536]
[1724891150069,0.00592721,2528.8,2528.6,3.2078]
[1724891150070,0.00592721,2528.8,2528.6,3.60316]
[1724891150460,0.00592721,2528.8,2528.6,3.2078]
[1724891151064,3.9544,2528.7,2528.1,0.3778]
[1724891151267,0.39536,2528.7,2528.1,0.3778]
[1724891151470,0.39548,2528.0,2527.4,3.2078]
[1724891151664,0.39548,2528.0,2527.1,0.3631]
[1724891151665,7.7578,2528.0,2527.1,0.3631]
[1724891151862,3.2078,2527.7,2527.1,0.3631]
[1724891152060,0.39555,2527.5,2526.9,3.2078]
[1724891152266,3.2078,2527.4,2526.9,3.60344]
[1724891152673,3.2078,2527.4,2527.0,0.39562]
[1724891153172,3.2078,2527.4,2526.9,44.40343]
[1724891153469,3.2078,2527.4,2527.0,0.39562]
[1724891153671,3.2078,2527.4,2527.2,0.39559]
[1724891153974,3.2078,2527.4,2527.1,0.3956]
[1724891155266,3.2078,2527.4,2526.9,44.0078]
[1724891155267,3.60923721,2527.8,2527.2,0.39559]
[1724891156060,3.21372721,2527.8,2527.2,3.2078]
[1724891156268,3.21372721,2527.8,2527.3,0.3674]
[1724891156571,3.21372721,2527.8,2527.3,0.76297]
[1724891156767,3.60922721,2527.8,2527.3,0.3674]
[1724891156966,3.21372721,2527.8,2527.3,0.76297]
[1724891158169,3.21372721,2527.8,2527.2,3.2078]
[1724891158468,0.3957,2526.5,2525.9,3.60359]
[1724891158769,4.55,2526.4,2526.0,0.39578]
[1724891158971,4.55,2526.4,2526.1,40.8]
[1724891159169,4.55,2526.4,2525.6,3.2078]
[1724891159465,0.00592721,2526.5,2525.9,0.39579]
[1724891159466,3.2078,2526.3,2525.9,0.39579]
[1724891159660,3.2078,2526.3,2526.0,40.8]
[1724891159857,0.00592721,2526.5,2526.1,0.39576]
[1724891160065,0.00592721,2526.5,2526.0,40.8]
[1724891160671,0.00592721,2526.5,2526.4,0.39572]
[1724891160863,0.00592721,2526.5,2526.0,44.0078]
[1724891161173,0.00592721,2526.5,2525.3,0.39589]
[1724891161174,0.39579,2526.0,2525.3,0.39589]
[1724891161365,4.94577,2526.1,2525.5,0.39585]
[1724891161564,4.55,2526.1,2525.3,40.8]
[1724891161768,4.55,2525.8,2525.1,3.2078]
[1724891161970,4.55,2525.8,2525.2,0.3959]
[1724891162178,4.55,2525.8,2525.1,44.0078]
[1724891162371,3.2078,2525.6,2525.1,40.8]
[1724891162672,4.55,2525.8,2523.8,3.2078]
[1724891162673,7.7578,2525.3,2523.8,3.2078]
[1724891162866,0.00593907,2524.8,2524.4,3.2078]
[1724891163067,0.00593907,2524.8,2524.7,3.60378]
[1724891163272,0.00593907,2524.8,2523.9,0.99028]
[1724891163273,0.00593907,2524.8,2524.2,0.39606]